bitfinex-derivatives/quotes_BTCF0:USTF0_20251206
["timestamp","ask_amount","ask_price","bid_price","bid_amount"]
[1765033397621,0.00216677,89948.0,89947.0,0.6008266]
[1765033399725,0.3608,89954.0,89947.0,0.6008266]
[1765033399726,0.3608,89954.0,89953.0,0.0851459]
[1765033399923,0.3608,89954.0,89950.0,0.01498]
[1765033399924,0.3608,89965.0,89964.0,0.0851445]
[1765033400223,0.3608,89965.0,89964.0,0.68069416]
[1765033400623,0.3608,89965.0,89964.0,0.6008245]
[1765033401127,0.3678,89965.0,89964.0,0.6008245]
[1765033401625,0.007,89965.0,89964.0,1.0308245]
[1765033401930,0.00016677,89973.0,89972.0,0.0851435]
[1765033404139,0.00016677,89973.0,89972.0,0.0861435]
[1765033404542,0.00016677,89973.0,89972.0,0.0851435]
[1765033404742,0.00016677,89973.0,89972.0,0.0861435]
[1765033405051,0.00016677,89973.0,89972.0,0.07503]
[1765033405052,0.07662677,89973.0,89972.0,0.07503]
[1765033405237,0.07662677,89973.0,89970.0,0.01564]
[1765033405238,0.07646,89971.0,89970.0,0.07977418]
[1765033405441,0.07646,89964.0,89962.0,0.07977418]
[1765033405639,0.09772,89958.0,89957.0,0.15380418]
[1765033405946,0.09772,89958.0,89957.0,0.66944418]
[1765033406343,0.09772,89958.0,89957.0,0.58967]
[1765033407247,0.09772,89958.0,89957.0,0.66944418]
[1765033407547,0.09972,89958.0,89957.0,0.66944418]
[1765033407748,0.09972,89958.0,89957.0,0.58967]
[1765033408144,0.09972,89958.0,89957.0,0.66944418]
[1765033408944,0.09972,89958.0,89957.0,0.15380418]
[1765033409139,0.09972,89958.0,89957.0,0.66948418]
[1765033409346,0.09972,89958.0,89957.0,0.58971]
[1765033410350,0.09972,89958.0,89957.0,0.66955151]
[1765033413056,0.09972,89958.0,89957.0,0.15387151]
[1765033413251,0.09972,89958.0,89957.0,0.55361]
[1765033413550,0.09972,89958.0,89956.0,0.08000828]
[1765033413551,0.0792654,89957.0,89956.0,0.51580677]
[1765033413751,0.4400654,89957.0,89956.0,0.51580677]
[1765033413956,0.4400654,89957.0,89956.0,0.00016677]
[1765033415253,0.4400654,89957.0,89956.0,0.06676677]
[1765033415447,0.4400654,89957.0,89956.0,0.00016677]
[1765033415652,0.8400654,89957.0,89956.0,0.00016677]
[1765033420258,0.4400654,89957.0,89956.0,0.00016677]
[1765033420757,0.06815,89934.0,89933.0,0.11370151]
[1765033420961,0.0111179,89937.0,89930.0,0.01130351]
[1765033420962,0.42895,89936.0,89935.0,0.0666]
[1765033422766,0.42895,89936.0,89935.0,0.0696]
[1765033424066,0.39362,89936.0,89935.0,0.0696]
[1765033424657,0.3608,89936.0,89935.0,0.0696]
[1765033429472,0.39362,89936.0,89935.0,0.0696]
[1765033430258,0.3608,89936.0,89935.0,0.4296]
[1765033430464,0.3608,89936.0,89935.0,0.50944151]
[1765033430673,0.3608,89936.0,89935.0,1.02520151]
[1765033431173,0.3608,89936.0,89935.0,0.80520151]
[1765033432169,0.3608,89936.0,89935.0,0.72536]
[1765033432775,0.3608,89936.0,89935.0,0.58536]
[1765033433175,0.42443,89942.0,89935.0,0.51876]
[1765033433376,0.42443,89942.0,89941.0,0.06424]
[1765033436279,0.42443,89942.0,89941.0,0.06624]
[1765033437682,0.42443,89942.0,89941.0,0.14598411]
[1765033438676,0.3608,89942.0,89941.0,0.06624]
[1765033438880,0.00016677,89944.0,89942.0,0.0111172]
[1765033439079,0.00016677,89944.0,89943.0,0.06424]
[1765033440074,0.00016677,89944.0,89943.0,0.85424]
[1765033440285,0.00016677,89944.0,89943.0,0.85624]
[1765033440981,0.42107,89962.0,89961.0,0.06053]
[1765033441687,0.0785,89960.0,89959.0,0.11009126]
[1765033441894,0.0785,89960.0,89959.0,0.03023]
[1765033442078,0.0785,89960.0,89959.0,0.06053]
[1765033442278,0.0713851,89959.0,89958.0,0.07986126]
[1765033443187,0.06027,89952.0,89951.0,0.00016677]
[1765033443378,0.42107,89952.0,89951.0,0.00016677]
[1765033445382,0.42107,89952.0,89951.0,0.03039677]
[1765033445786,0.42107,89952.0,89951.0,0.00016677]
[1765033446081,0.42107,89952.0,89951.0,0.03039677]
[1765033447088,0.42107,89952.0,89951.0,0.06069677]
[1765033447783,0.3608,89952.0,89951.0,0.06069677]
[1765033451586,0.39102,89952.0,89951.0,0.06069677]
[1765033451791,0.42107,89952.0,89951.0,0.06069677]
[1765033456797,0.3608,89952.0,89951.0,0.06069677]
[1765033457596,0.39102,89952.0,89951.0,0.06069677]
[1765033458197,0.3608,89952.0,89951.0,0.06069677]
[1765033459295,0.39102,89952.0,89951.0,0.06069677]
[1765033459496,0.42107,89952.0,89951.0,0.06069677]
[1765033460898,0.39102,89952.0,89951.0,0.06069677]
[1765033463500,0.42107,89952.0,89951.0,0.06069677]
[1765033466202,0.06027,89952.0,89951.0,0.06069677]
[1765033467290,0.06027,89952.0,89951.0,0.16052334]
[1765033467900,0.06027,89952.0,89951.0,0.06069677]
[1765033472001,0.06027,89952.0,89951.0,0.10013883]
[1765033473203,0.06027,89952.0,89951.0,0.16231883]
[1765033476405,0.06027,89952.0,89951.0,0.06234677]
[1765033477097,0.3608,89957.0,89956.0,0.06218]
[1765033477098,0.42273,89957.0,89956.0,0.06218]
[1765033477500,0.3608,89977.0,89966.0,0.06218]
[1765033477700,0.3608,89977.0,89966.0,0.95786]
[1765033477897,0.3911,89967.0,89966.0,0.95786]
[1765033478307,0.3608,89967.0,89966.0,0.95786]
[1765033478504,0.42273,89967.0,89966.0,0.95786]
[1765033478903,0.3608,89967.0,89966.0,0.95786]
[1765033479201,0.01819,89985.0,89966.0,0.95786]
[1765033479202,0.3608,89976.0,89967.0,0.0732942]
[1765033479508,0.3608,89976.0,89967.0,0.4332942]
[1765033480300,0.3608,89976.0,89975.0,0.0732932]
[1765033480505,0.3608,89976.0,89975.0,0.5889332]
[1765033480708,0.0111114,89990.0,89989.0,0.03184]
[1765033481005,0.0111114,89990.0,89989.0,0.06218]
[1765033481006,0.06193,89990.0,89989.0,0.06218]
[1765033481205,0.06193,89990.0,89989.0,0.07313373]
[1765033483011,0.06293,89990.0,89989.0,0.07313373]
[1765033485911,0.06293,89990.0,89989.0,0.06218]
[1765033491817,0.06193,89990.0,89989.0,0.06218]
[1765033492013,0.06293,89990.0,89989.0,0.06218]
[1765033493319,0.42373,89990.0,89989.0,0.06218]
[1765033493817,0.06293,89990.0,89989.0,0.06218]
[1765033494022,0.42373,89990.0,89989.0,0.06218]
[1765033498521,0.06293,89990.0,89989.0,0.06218]
[1765033498712,0.42373,89990.0,89989.0,0.06218]
[1765033500615,0.05699,89985.0,89984.0,0.01125852]
[1765033500819,0.05699,89982.0,89981.0,0.00016677]
[1765033501017,0.41779,89982.0,89981.0,0.00016677]
[1765033504730,0.42079,89982.0,89981.0,0.00016677]
[1765033505421,0.42279,89982.0,89981.0,0.00016677]
[1765033509532,0.41879,89982.0,89981.0,0.00016677]
[1765033509830,0.42179,89982.0,89981.0,0.00016677]
[1765033510031,0.42279,89982.0,89981.0,0.00016677]
[1765033510231,0.78359,89982.0,89981.0,0.00016677]
[1765033510724,0.78259,89982.0,89981.0,0.00016677]
[1765033511123,0.77859,89982.0,89981.0,0.00016677]
[1765033511340,0.78259,89982.0,89981.0,0.00016677]
[1765033511735,0.77859,89982.0,89981.0,0.00016677]
[1765033511929,0.78259,89982.0,89981.0,0.00016677]
[1765033512427,0.77859,89982.0,89981.0,0.00016677]
[1765033512630,0.78259,89982.0,89981.0,0.00016677]
[1765033513839,0.07179,89964.0,89963.0,0.07987998]
[1765033514035,0.43259,89964.0,89963.0,0.07987998]
[1765033514228,0.43259,89964.0,89963.0,0.10767998]
[1765033514428,0.43259,89964.0,89963.0,0.13507998]
[1765033515832,0.0111147,89963.0,89962.0,0.0911159]
[1765033516033,0.0111147,89963.0,89959.0,0.07987998]
[1765033516034,0.05699,89960.0,89959.0,0.07987998]
[1765033516225,0.05699,89960.0,89959.0,0.10767998]
[1765033516421,0.05699,89960.0,89959.0,0.13507998]
[1765033516830,0.05699,89960.0,89959.0,0.1463315]
[1765033517228,0.05699,89960.0,89959.0,0.06645152]
[1765033517436,0.0681047,89963.0,89962.0,0.0552]
[1765033517627,0.0691047,89963.0,89962.0,0.0552]
[1765033518237,0.0681047,89963.0,89962.0,0.0552]
[1765033518940,0.0691047,89963.0,89962.0,0.0552]
[1765033523242,0.0691047,89963.0,89959.0,0.06645152]
[1765033523243,0.05699,89960.0,89959.0,0.06645152]
[1765033524637,0.05899,89960.0,89959.0,0.06645152]
[1765033525031,0.05699,89960.0,89959.0,0.06645152]
[1765033525945,0.07119,89960.0,89959.0,0.03905152]
[1765033526132,0.07119,89960.0,89959.0,0.06645152]
[1765033526342,0.05699,89960.0,89959.0,0.06645152]
[1765033526637,0.05899,89960.0,89959.0,0.06645152]
[1765033527348,0.05899,89960.0,89955.0,0.00016677]
[1765033527349,0.05699,89956.0,89955.0,0.00016677]
[1765033527540,0.41779,89956.0,89955.0,0.00016677]
[1765033528638,0.42079,89956.0,89955.0,0.00016677]
[1765033530048,0.41779,89956.0,89955.0,0.00016677]
[1765033530240,0.42079,89956.0,89955.0,0.00016677]
[1765033531536,0.0111175,89940.0,89935.0,0.028988]
[1765033531741,0.05844,89936.0,89935.0,0.085038]
[1765033532744,0.05844,89936.0,89935.0,0.0847865]
[1765033533352,0.05844,89936.0,89935.0,0.0857865]
[1765033537454,0.02894,89936.0,89935.0,0.0857865]
[1765033537660,0.3608,89943.0,89935.0,0.0857865]
[1765033537857,0.3608,89943.0,89942.0,0.05605]
[1765033538364,0.41924,89943.0,89942.0,0.05605]
[1765033539365,0.42024,89943.0,89942.0,0.05605]
[1765033546764,0.05944,89943.0,89942.0,0.05605]
[1765033558571,0.42024,89943.0,89942.0,0.05605]
[1765033560780,0.0737,89940.0,89939.0,0.0998522]
[1765033560982,0.05674,89936.0,89935.0,0.1700487]
[1765033561277,0.05674,89936.0,89935.0,0.0701965]
[1765033562878,0.05674,89936.0,89935.0,0.0711965]
[1765033569193,0.07153,89936.0,89935.0,0.001]
[1765033573994,0.05674,89936.0,89935.0,0.06033]
[1765033577597,0.05674,89936.0,89935.0,0.03089]
[1765033577788,0.05674,89936.0,89935.0,0.06033]
[1765033579500,0.05674,89936.0,89935.0,0.001]
[1765033579699,0.0678591,89927.0,89926.0,0.00027801]
[1765033579904,0.4286591,89927.0,89926.0,0.00027801]
[1765033580687,0.4286591,89927.0,89926.0,0.05960801]
[1765033581299,0.4286591,89927.0,89926.0,0.06160801]
[1765033586102,0.4286591,89927.0,89926.0,0.00227801]
[1765033592903,0.05495,89906.0,89905.0,0.07442]
[1765033593601,0.05495,89897.0,89896.0,0.1571022]
[1765033593808,0.05495,89897.0,89896.0,0.05725]
[1765033594204,0.05495,89897.0,89896.0,0.0681505]
[1765033594498,0.18549067,89906.0,89896.0,0.0681505]
[1765033594499,0.24144067,89906.0,89905.0,0.05725]
[1765033594704,0.41675,89906.0,89905.0,0.05725]
[1765033595008,0.41575,89906.0,89905.0,0.04825]
[1765033596205,0.38872,89906.0,89905.0,0.04825]
[1765033596405,0.3608,89906.0,89905.0,0.04825]
[1765033596606,0.05511677,89914.0,89913.0,0.05725]
[1765033597113,0.05495,89900.0,89899.0,0.05725]
[1765033598017,0.41575,89905.0,89904.0,0.05725]
[1765033598209,0.41575,89905.0,89904.0,0.07445]
[1765033600311,0.41575,89905.0,89904.0,0.05725]
[1765033600518,0.0660728,89897.0,89896.0,0.0681505]
[1765033600711,0.0660728,89897.0,89896.0,0.05725]
[1765033602013,0.0670728,89897.0,89896.0,0.05725]
[1765033602515,0.0670728,89897.0,89896.0,0.02993]
[1765033602920,0.0670728,89897.0,89896.0,0.05725]
[1765033603122,0.0660736,89891.0,89890.0,0.41805]
[1765033603922,0.0660736,89891.0,89890.0,0.42906691]
[1765033604522,0.0670736,89891.0,89890.0,0.42906691]
[1765033607120,0.0670736,89891.0,89890.0,0.02993]
[1765033608322,0.0670736,89891.0,89890.0,0.05725]
[1765033608531,0.0660741,89887.0,89886.0,0.00038501]
[1765033608717,0.0660741,89887.0,89886.0,0.05763501]
[1765033609528,0.0660741,89887.0,89886.0,0.07483501]
[1765033610124,0.0660741,89887.0,89886.0,0.03031501]
[1765033610332,0.0660741,89887.0,89886.0,0.05763501]
[1765033611231,0.0660741,89887.0,89886.0,0.00038501]
[1765033612524,0.4268741,89887.0,89886.0,0.00038501]
[1765033614430,0.0660741,89887.0,89886.0,0.00038501]
[1765033614830,0.7876741,89887.0,89886.0,0.00038501]
[1765033615231,0.05698,89863.0,89862.0,0.0172]
[1765033615430,0.05698,89863.0,89862.0,0.36566]
[1765033616024,0.05698,89863.0,89862.0,0.3768551]
[1765033616220,0.05708688,89863.0,89862.0,0.3768551]
[1765033616427,0.05708688,89863.0,89862.0,0.0868951]
[1765033616635,0.05808688,89863.0,89862.0,0.0908951]
[1765033618435,0.00110688,89863.0,89862.0,0.0911851]
[1765033619428,0.00110688,89863.0,89862.0,0.4711851]
[1765033620532,0.3608,89869.0,89868.0,0.0857164]
[1765033620729,0.00016686,89871.0,89870.0,0.05703]
[1765033620929,0.00016686,89871.0,89870.0,0.46703]
[1765033621522,0.00016686,89871.0,89870.0,0.98303]
[1765033621725,0.3608,89887.0,89886.0,0.06329]
[1765033621927,0.3893,89895.0,89894.0,0.05703]
[1765033622134,0.41763,89895.0,89894.0,0.05703]
[1765033623334,0.3608,89895.0,89894.0,0.05703]
[1765033623734,0.3893,89895.0,89894.0,0.05703]
[1765033623933,0.41763,89895.0,89894.0,0.05703]
[1765033624641,0.41763,89895.0,89894.0,0.02707]
[1765033625341,0.41763,89895.0,89894.0,0.05703]
[1765033626135,0.41863,89895.0,89894.0,0.05703]
[1765033630160,0.41763,89895.0,89894.0,0.05703]
[1765033630462,0.41863,89895.0,89894.0,0.05703]
[1765033633466,0.05683,89890.0,89889.0,0.57303]
[1765033634167,0.0679537,89890.0,89889.0,0.57303]
[1765033637871,0.05683,89887.0,89886.0,0.02723686]
[1765033638071,0.41763,89887.0,89886.0,0.02723686]
[1765033638774,0.41763,89887.0,89886.0,0.05719686]
[1765033638955,0.41763,89887.0,89886.0,0.00016686]
[1765033639665,0.41763,89887.0,89886.0,0.00116686]
[1765033643165,0.41763,89887.0,89886.0,0.05819686]
[1765033643373,0.41763,89887.0,89886.0,0.00116686]
[1765033644563,0.41763,89887.0,89886.0,0.05819686]
[1765033645573,0.41763,89887.0,89886.0,0.07575686]
[1765033648475,0.3608,89887.0,89886.0,0.07575686]
[1765033648877,0.41763,89887.0,89886.0,0.07575686]
[1765033649278,0.41763,89887.0,89886.0,0.05819686]
[1765033652479,0.41763,89887.0,89886.0,0.00116686]
[1765033654572,0.41763,89887.0,89863.0,0.0998522]
[1765033654573,0.0559,89863.0,89862.0,0.0680051]
[1765033654777,0.0559,89863.0,89862.0,0.05681]
[1765033655879,0.0569,89863.0,89862.0,0.07209567]
[1765033657273,0.0569,89863.0,89862.0,0.08898567]
[1765033660577,0.001,89863.0,89862.0,0.08898567]
[1765033662879,0.001,89863.0,89862.0,0.50898567]
[1765033663576,0.00016686,89871.0,89870.0,0.05681]
[1765033663778,0.00016686,89871.0,89870.0,0.57285]
[1765033664883,0.00016686,89871.0,89870.0,0.57585]
[1765033667077,0.05606686,89871.0,89870.0,0.57585]
[1765033668385,0.00016686,89871.0,89870.0,0.57585]
[1765033668687,0.02843686,89871.0,89870.0,0.57585]
[1765033669281,0.00016686,89871.0,89870.0,0.57585]
[1765033669481,0.00016686,89871.0,89870.0,0.98585]
[1765033669687,0.25283637,89890.0,89889.0,0.05681]
[1765033669893,0.0670237,89890.0,89889.0,0.05681]
[1765033674391,0.0559,89890.0,89889.0,0.05681]
[1765033683999,0.0681547,89882.0,89881.0,0.05767686]
[1765033684199,0.4289547,89882.0,89881.0,0.00016686]
[1765033684696,0.4289547,89882.0,89881.0,0.02856686]
[1765033685100,0.4289547,89882.0,89881.0,0.05767686]
[1765033685499,0.3608,89882.0,89881.0,0.05867686]
[1765033686306,0.068154,89888.0,89887.0,0.05751]
[1765033686810,0.02984,89888.0,89887.0,0.05751]
[1765033689212,0.05703,89888.0,89887.0,0.05751]
[1765033691305,0.0681565,89867.0,89866.0,0.0998522]
[1765033691510,0.0681565,89867.0,89865.0,0.13861317]
[1765033691511,0.0681577,89858.0,89857.0,0.05751]
[1765033691710,0.4289577,89858.0,89857.0,0.05751]
[1765033693303,0.4289577,89858.0,89857.0,0.05951]
[1765033695607,0.3608,89858.0,89857.0,0.05951]
[1765033696006,0.05719686,89866.0,89865.0,0.05751]
[1765033696407,0.00016686,89866.0,89865.0,0.05751]
[1765033696608,0.03000686,89866.0,89865.0,0.05751]
[1765033696812,0.05719686,89866.0,89865.0,0.05751]
[1765033697408,0.05719686,89866.0,89865.0,0.05851]
[1765033713318,0.05719686,89866.0,89865.0,0.05751]
[1765033725532,0.05819686,89866.0,89865.0,0.05751]
[1765033736942,0.0394181,89854.0,89853.0,0.05763]
[1765033737147,0.38909,89857.0,89856.0,0.07421]
[1765033737340,0.41678,89857.0,89856.0,0.07421]
[1765033737541,0.38909,89857.0,89856.0,0.07421]
[1765033737941,0.41678,89857.0,89856.0,0.07421]
[1765033738343,0.41678,89857.0,89856.0,0.07521]
[1765033738543,0.38909,89857.0,89856.0,0.07521]
[1765033739751,0.41678,89857.0,89856.0,0.07521]
[1765033741644,0.0111271,89863.0,89856.0,0.07521]
[1765033741844,0.0388271,89863.0,89862.0,0.05764]
[1765033742049,0.0682871,89863.0,89862.0,0.05764]
[1765033742351,0.05716,89863.0,89862.0,0.05764]
[1765033746055,0.05716,89863.0,89862.0,0.57424]
[1765033753558,0.05716,89863.0,89862.0,0.02929]
[1765033753857,0.0279969,89864.0,89853.0,0.1574922]
[1765033753858,0.0682881,89854.0,89853.0,0.1574922]
[1765033754162,0.0682881,89854.0,89853.0,0.6740122]
[1765033755159,0.0682881,89854.0,89853.0,0.6750122]
[1765033755361,0.0682881,89854.0,89853.0,0.57516]
[1765033758064,0.3885,89857.0,89856.0,0.07489]
[1765033758263,0.41796,89857.0,89856.0,0.07489]
[1765033759364,0.41796,89857.0,89856.0,0.07589]
[1765033763061,0.05716,89857.0,89856.0,0.07589]
[1765033773073,0.05716,89857.0,89856.0,0.05864]
[1765033773374,0.05716,89857.0,89856.0,0.57504]
[1765033773576,0.05716,89857.0,89856.0,0.001]
[1765033773776,0.05716,89857.0,89856.0,0.02948]
[1765033773979,0.05716,89857.0,89856.0,0.05743]
[1765033777995,0.41796,89857.0,89856.0,0.07432]
[1765033786196,0.05716,89857.0,89856.0,0.07432]
[1765033788201,0.05716,89857.0,89856.0,0.05743]
[1765033791100,0.05716,89857.0,89856.0,0.07432]
[1765033794509,0.0687972,89862.0,89861.0,0.05643]
[1765033794699,0.3608,89865.0,89861.0,0.05643]
[1765033794700,0.41847,89865.0,89864.0,0.07332]
[1765033796004,0.41947,89865.0,89864.0,0.07332]
[1765033796609,0.3618,89865.0,89864.0,0.07332]
[1765033796916,0.21289906,89880.0,89879.0,0.05718]
[1765033797101,0.02706,89880.0,89879.0,0.57346]
[1765033799105,0.002,89880.0,89879.0,0.57346]
[1765033799508,0.41758,89883.0,89882.0,0.05718]
[1765033800111,0.05678,89883.0,89882.0,0.05718]
[1765033800701,0.05978,89883.0,89882.0,0.05718]
[1765033801115,0.05978,89883.0,89882.0,0.0683047]
[1765033801318,0.03006,89883.0,89882.0,0.05718]
[1765033802417,0.003,89883.0,89882.0,0.4383047]
[1765033803008,0.00016686,89888.0,89887.0,0.05592]
[1765033803407,0.01642,89908.0,89887.0,0.05592]
[1765033803408,0.0111213,89909.0,89901.0,0.05592]
[1765033803614,0.38786,89902.0,89901.0,0.57216]
[1765033804112,0.41661,89902.0,89901.0,0.57216]
[1765033805708,0.05581,89902.0,89901.0,0.57216]
[1765033807020,0.05581,89902.0,89901.0,0.57316]
[1765033807717,0.24170945,89910.0,89909.0,0.05592]
[1765033808118,0.05597686,89910.0,89909.0,0.05592]
[1765033808320,0.05597686,89910.0,89909.0,0.06721463]
[1765033809514,0.05797686,89910.0,89909.0,0.06721463]
[1765033809813,0.02922686,89910.0,89909.0,0.06721463]
[1765033810014,0.05597686,89910.0,89909.0,0.06721463]
[1765033813725,0.06579686,89910.0,89909.0,0.06721463]
[1765033813926,0.06579686,89910.0,89909.0,0.52737463]
[1765033814125,0.06579686,89910.0,89909.0,0.58329463]
[1765033814321,0.05597686,89910.0,89909.0,0.58329463]
[1765033814523,0.05581,89901.0,89900.0,0.05592]
[1765033815229,0.3719221,89903.0,89890.0,0.01708]
[1765033815230,0.0669332,89894.0,89893.0,0.05608686]
[1765033815531,0.4277332,89894.0,89893.0,0.05608686]
[1765033816432,0.4277332,89894.0,89893.0,0.0669633]
[1765033816932,0.4277332,89894.0,89893.0,0.0679633]
[1765033817929,0.4277332,89894.0,89893.0,0.00116686]
[1765033819130,0.4277332,89894.0,89893.0,0.02967686]
[1765033824832,0.4277332,89894.0,89893.0,0.00116686]
[1765033825227,0.4277332,89894.0,89893.0,0.02967686]
[1765033827133,0.4277332,89894.0,89893.0,0.00116686]
[1765033827338,0.4277332,89894.0,89893.0,0.02967686]
[1765033828823,0.4277332,89894.0,89893.0,0.05708686]
[1765033830133,0.4277332,89894.0,89893.0,0.00116686]
[1765033833437,0.4277332,89894.0,89893.0,0.05644686]
[1765033835037,0.41661,89894.0,89893.0,0.05644686]
[1765033840635,0.3608,89894.0,89893.0,0.05644686]
[1765033840837,0.05636,89903.0,89902.0,0.05528]
[1765033841237,0.00016686,89910.0,89904.0,0.07193]
[1765033841736,0.38978,89905.0,89904.0,0.07193]
[1765033841943,0.41716,89905.0,89904.0,0.07193]
[1765033842640,0.42016,89905.0,89904.0,0.07193]
[1765033843043,0.41716,89905.0,89904.0,0.07193]
[1765033843241,0.41716,89905.0,89904.0,0.07293]
[1765033844947,0.05652686,89910.0,89909.0,0.05528]
[1765033847538,0.3608,89915.0,89904.0,0.01665]
[1765033847539,0.35797609,89915.0,89914.0,0.0111207]
[1765033847839,0.0111186,89932.0,89902.0,0.51608]
[1765033847840,0.05663801,89926.0,89925.0,0.02746]
[1765033848156,0.05663801,89926.0,89925.0,0.54382]
[1765033848543,0.05663801,89926.0,89925.0,0.57164]
[1765033849146,0.05663801,89926.0,89925.0,0.57264]
[1765033849349,0.05663801,89926.0,89925.0,0.05628]
[1765033849550,0.05763801,89926.0,89925.0,0.05528]
[1765033850644,0.00127801,89926.0,89925.0,0.07193]
[1765033850846,0.00127801,89926.0,89925.0,0.74273]
[1765033851047,0.00027801,89926.0,89925.0,0.74273]
[1765033851745,0.00016686,89934.0,89933.0,0.0671484]
[1765033852949,0.00316686,89934.0,89933.0,0.0671484]
[1765033854346,0.41803,89952.0,89951.0,0.05603]
[1765033854649,0.41803,89952.0,89951.0,0.57231]
[1765033855037,0.43472,89952.0,89951.0,0.54377]
[1765033855444,0.43472,89952.0,89951.0,0.51628]
[1765033855653,0.05723,89944.0,89943.0,0.05619676]
[1765033855854,0.05723,89944.0,89943.0,0.56794361]
[1765033857154,0.068347,89944.0,89943.0,0.56794361]
[1765033858355,0.068347,89944.0,89943.0,0.57094361]
[1765033858556,0.05723,89944.0,89943.0,0.57094361]
[1765033858747,0.05723,89944.0,89943.0,0.58106071]
[1765033859951,0.18573259,89953.0,89943.0,0.58106071]
[1765033859952,0.05753,89953.0,89952.0,0.05688]
[1765033860659,0.05753,89953.0,89943.0,0.51391361]
[1765033860660,0.05901,89944.0,89943.0,0.57049361]
[1765033861060,0.05901,89944.0,89943.0,0.58625361]
[1765033861556,0.05901,89944.0,89943.0,0.58425361]
[1765033862258,0.05901,89944.0,89943.0,0.58625361]
[1765033862849,0.05901,89944.0,89943.0,0.07001361]
[1765033864863,0.05901,89944.0,89943.0,0.00216676]
[1765033865155,0.05901,89926.0,89925.0,0.06789456]
[1765033865558,0.0701292,89926.0,89925.0,0.06789456]
[1765033866353,0.0711292,89926.0,89925.0,0.06789456]
[1765033866861,0.06001,89926.0,89925.0,0.06789456]
[1765033867055,0.03064,89926.0,89925.0,0.06789456]
[1765033867361,0.06001,89926.0,89925.0,0.06789456]
[1765033868254,0.05901,89926.0,89925.0,0.06789456]
[1765033868455,0.06001,89926.0,89925.0,0.06789456]
[1765033868656,0.001,89926.0,89925.0,0.06789456]
[1765033868857,0.39044,89928.0,89927.0,0.05658]
[1765033869150,0.41981,89928.0,89927.0,0.05658]
[1765033870459,0.05901,89928.0,89927.0,0.05658]
[1765033871261,0.05901,89928.0,89927.0,0.05758]
[1765033878767,0.39044,89930.0,89929.0,0.05658]
[1765033879263,0.41981,89930.0,89929.0,0.05658]
[1765033880264,0.41981,89930.0,89929.0,0.05758]
[1765033884073,0.43613,89930.0,89929.0,0.05758]
[1765033884273,0.43613,89930.0,89929.0,0.001]
[1765033886369,0.0111188,89929.0,89925.0,0.01121284]
[1765033886678,0.05901,89918.0,89917.0,0.41754676]
[1765033886875,0.05901,89918.0,89917.0,0.05674676]
[1765033887870,0.05901,89918.0,89917.0,0.05974676]
[1765033888777,0.05901,89918.0,89917.0,0.07107121]
[1765033889576,0.05901,89918.0,89917.0,0.06907121]
[1765033894378,0.05901,89918.0,89917.0,0.01249121]
[1765033894578,0.05901,89918.0,89917.0,0.04040121]
[1765033894778,0.05901,89918.0,89917.0,0.07038121]
[1765033896275,0.05901,89918.0,89917.0,0.04040121]
[1765033897281,0.05901,89918.0,89917.0,0.00116676]
[1765033900982,0.05901,89918.0,89917.0,0.05905676]
[1765033901179,0.05901,89918.0,89917.0,0.00116676]
[1765033904681,0.05901,89918.0,89917.0,0.05905676]
[1765033907790,0.41733,89921.0,89920.0,0.07504]
[1765033909283,0.41733,89921.0,89920.0,0.07604]
[1765033912286,0.38918,89921.0,89920.0,0.07604]
[1765033912483,0.3608,89921.0,89920.0,0.07604]
[1765033912879,0.3608,89921.0,89920.0,0.5922]
[1765033913075,0.24266802,89930.0,89929.0,0.05709]
[1765033913280,0.05721,89930.0,89929.0,0.05709]
[1765033915486,0.05921,89930.0,89929.0,0.05709]
[1765033916890,0.07612,89930.0,89929.0,0.02958]
[1765033917388,0.05721,89921.0,89920.0,0.9512]
[1765033917589,0.05721,89921.0,89920.0,0.57325]
[1765033919391,0.05721,89921.0,89920.0,0.59058]
[1765033920293,0.05721,89921.0,89920.0,0.58958]
[1765033920495,0.05721,89921.0,89920.0,0.59058]
[1765033921085,0.05721,89921.0,89920.0,0.57425]
[1765033921692,0.05721,89921.0,89920.0,0.03058]
[1765033922189,0.05721,89921.0,89920.0,0.02958]
[1765033922395,0.05721,89921.0,89920.0,0.001]
[1765033922893,0.05721,89921.0,89920.0,0.02901]
[1765033923088,0.05721,89921.0,89920.0,0.05651]
[1765033924398,0.05721,89921.0,89920.0,0.0731]
[1765033924584,0.05721,89921.0,89920.0,0.05651]
[1765033928494,0.05721,89921.0,89920.0,0.05551]
[1765033928692,0.05721,89921.0,89920.0,0.05651]
[1765033935486,0.05721,89921.0,89920.0,0.001]
[1765033935998,0.05721,89921.0,89920.0,0.02901]
[1765033936899,0.05721,89921.0,89920.0,0.001]
[1765033948607,0.77881,89921.0,89920.0,0.001]
[1765033949610,0.77881,89921.0,89917.0,0.00016676]
[1765033949611,0.05578,89918.0,89917.0,0.00016676]
[1765033951509,0.05578,89918.0,89917.0,0.00116676]
[1765033954209,0.02803,89920.0,89896.0,0.0715]
[1765033954210,0.0670728,89897.0,89896.0,0.0715]
[1765033954407,0.4278728,89897.0,89896.0,0.05491]
[1765033955606,0.4278728,89897.0,89896.0,0.05891]
[1765033955812,0.4278728,89897.0,89896.0,0.07026413]
[1765033956618,0.4278728,89897.0,89896.0,0.08750413]
[1765033966524,0.41675,89897.0,89896.0,0.08750413]
[1765033971027,0.41675,89897.0,89896.0,0.07026413]
[1765033972623,0.41675,89897.0,89896.0,0.08806413]
[1765033976228,0.41675,89897.0,89896.0,0.07026413]
[1765033979632,0.41675,89897.0,89896.0,0.01535413]
[1765033980230,0.77755,89897.0,89896.0,0.004]
[1765033980531,0.0687938,89889.0,89888.0,0.00016686]
[1765033980726,0.4295938,89889.0,89888.0,0.00016686]
[1765033980927,0.4295938,89889.0,89888.0,0.02816686]
[1765033981324,0.4295938,89889.0,89888.0,0.00016686]
[1765033981840,0.4325938,89889.0,89888.0,0.02816686]
[1765033982633,0.4325938,89889.0,89888.0,0.00016686]
[1765033986239,0.4325938,89889.0,89873.0,0.10009467]
[1765033986240,0.0111256,89875.0,89873.0,0.05757]
[1765033986539,0.05767,89874.0,89873.0,0.06896571]